fUSD/lending_fUSD_20250302
["ID","MTS","AMOUNT","RATE_DAILY","PERIOD"]
[355050175,1740881457501,-2255.68,0.00025753,2]
[355050177,1740881457510,-3135.44,0.00025753,2]
[355050179,1740881457520,-500.0,0.00025753,2]
[355050181,1740881457530,-500.0,0.00025753,2]
[355050183,1740881457539,-713.49,0.00025753,2]
[355050185,1740881457549,-517.56,0.00025753,2]
[355050187,1740881457559,-500.0,0.00025753,2]
[355050189,1740881457568,-500.0,0.00025753,2]
[355050191,1740881457577,-3194.52,0.00025753,2]
[355050193,1740881457586,-500.0,0.00025753,2]
[355050195,1740881457595,-1589.23,0.00025753,2]
[355050197,1740881457605,-500.0,0.00025753,2]
[355050199,1740881457614,-514.97,0.00025753,2]
[355050201,1740881457624,-1284.33,0.00025753,2]
[355050203,1740881457634,-500.0,0.00025753,2]
[355050205,1740881457644,-806.42,0.00025753,2]
[355050207,1740881457653,-904.53,0.00025753,2]
[355050209,1740881457662,-602.13,0.00025753,2]
[355050211,1740881457671,-2001.38,0.00025753,2]
[355050213,1740881457680,-585.0,0.00025753,2]
[355050215,1740881457689,-500.0,0.00025753,2]
[355050217,1740881457698,-1274.5,0.00025753,2]
[355050219,1740881457708,-500.0,0.00025753,2]
[355050221,1740881457717,-816.02,0.00025753,2]
[355050223,1740881457727,-566.22,0.00025753,2]
[355050225,1740881457736,-500.66,0.00025753,2]
[355050227,1740881457746,-500.0,0.00025753,2]
[355050229,1740881457755,-500.0,0.00025753,2]
[355050231,1740881457770,-500.0,0.00025753,2]
[355050233,1740881457779,-2074.9,0.00025753,2]
[355050235,1740881457789,-1338.52019162,0.00025762,4]
[355050237,1740881457798,-152.0,0.0002586,8]
[355050240,1740881457808,-131387.26638141,0.0002598,10]
[355050264,1740881458028,-4906.4987505,0.0002598,10]
[355050266,1740881458040,-1100.0,0.0002598,10]
[355050268,1740881458050,-22649.02253899,0.0002598,10]
[355050271,1740881458064,-649.14654515,0.0002598,10]
[355050273,1740881458073,-189.0,0.00026,2]
[355050275,1740881458082,-2233.79608503,0.00026007,2]
[355050277,1740881458092,-500.0,0.00026027,2]
[355050279,1740881458102,-442.43414705,0.00026027,2]
[355050281,1740881458111,-634.49035973,0.00026027,2]
[355050283,1740881458120,-500.0,0.00026027,2]
[355050285,1740881458129,-500.0,0.00026027,2]
[355050286,1740881458138,-500.0,0.00026027,2]
[355050289,1740881458147,-500.0,0.00026027,2]
[355050290,1740881458156,-500.0,0.00026027,2]
[355050292,1740881458166,-500.0,0.00026027,2]
[355050294,1740881458175,-500.0,0.00026027,2]
[355050296,1740881458184,-500.0,0.00026027,2]
[355050298,1740881458193,-619.09232918,0.00026027,2]
[355050300,1740881458203,-500.0,0.00026027,2]
[355050302,1740881458212,-835.24,0.00026027,2]
[355050304,1740881458221,-500.0,0.00026027,2]
[355050306,1740881458231,-500.0,0.00026027,2]
[355050308,1740881458240,-385.93193533,0.00026027,2]
[355050320,1740881458336,-402.47165905,0.000237,2]
[355050322,1740881458346,-114.06806467,0.00026027,2]
[355050324,1740881458355,-500.0,0.00026027,2]
[355050326,1740881458364,-500.0,0.00026027,2]
[355050328,1740881458373,-429.36917186,0.00026027,2]
[355050330,1740881458383,-1040.32,0.00026027,2]
[355050332,1740881458392,-2264.332397,0.00026027,2]
[355050334,1740881458400,-500.0,0.00026027,2]
[355050336,1740881458409,-500.0,0.00026027,2]
[355050337,1740881458418,-500.0,0.00026027,2]
[355050339,1740881458428,-466.08139054,0.00026027,2]
[355050343,1740881458457,-33.91860946,0.00026027,2]
[355050345,1740881458466,-367.08139054,0.00026027,2]
[355050348,1740881458478,-132.91860946,0.00026027,2]
[355050350,1740881458488,-500.0,0.00026027,2]
[355050352,1740881458497,-500.0,0.00026027,2]
[355050354,1740881458507,-500.0,0.00026027,2]
[355050355,1740881458516,-500.0,0.00026027,2]
[355050357,1740881458525,-500.0,0.00026027,2]
[355050360,1740881458535,-762.378887,0.00026027,2]
[355050361,1740881458544,-500.0,0.00026027,2]
[355050363,1740881458553,-303.74795542,0.00026027,2]
[355050365,1740881458562,-500.0,0.00026027,2]
[355050367,1740881458571,-500.0,0.00026027,2]
[355050369,1740881458581,-500.0,0.00026027,2]
[355050371,1740881458590,-500.0,0.00026027,2]
[355050373,1740881458600,-377.91380346,0.00026027,2]
[355050375,1740881458609,-500.0,0.00026027,2]
[355050377,1740881458619,-500.0,0.00026027,2]
[355050379,1740881458628,-500.0,0.00026027,2]
[355050381,1740881458637,-78.58148805,0.00026027,2]
[355050384,1740881458649,-421.41851195,0.00026027,2]
[355050385,1740881458658,-500.0,0.00026027,2]
[355050387,1740881458667,-523.56,0.00026027,2]
[355050389,1740881458677,-769.43452174,0.00026027,2]
[355050392,1740881458688,-36.68547826,0.00026027,2]
[355050394,1740881458698,-500.0,0.00026027,2]
[355050395,1740881458707,-500.0,0.00026027,2]
[355050397,1740881458717,-500.0,0.00026027,2]
[355050399,1740881458726,-517.33,0.00026027,2]
[355050419,1740881458914,-305.77644989,0.00026027,2]
[355050532,1740881460047,-194.22355011,0.00026027,2]
[355050534,1740881460057,-500.0,0.00026027,2]
[355050536,1740881460066,-500.0,0.00026027,2]
[355050538,1740881460076,-500.0,0.00026027,2]
[355050540,1740881460085,-746.37,0.00026027,2]
[355050541,1740881460096,-500.0,0.00026027,2]
[355050543,1740881460105,-500.0,0.00026027,2]
[355050545,1740881460114,-1782.87,0.00026027,2]
[355050547,1740881460124,-500.0,0.00026027,2]
[355050549,1740881460134,-500.0,0.00026027,2]
[355050551,1740881460143,-500.0,0.00026027,2]
[355050553,1740881460153,-562.75,0.00026027,2]
[355050555,1740881460163,-500.0,0.00026027,2]
[355050556,1740881460172,-500.0,0.00026027,2]
[355050558,1740881460188,-397.31798335,0.00026027,2]
[355050561,1740881460200,-102.68201665,0.00026027,2]
[355050563,1740881460209,-309.14838362,0.00026027,2]
[355050573,1740881460307,-371.36315667,0.00024657,2]
[355050581,1740881460383,-196.29493344,0.00024657,2]
[355050583,1740881460392,-190.85161638,0.00026027,2]
[355050585,1740881460402,-500.0,0.00026027,2]
[355050587,1740881460410,-500.0,0.00026027,2]
[355050588,1740881460419,-64.35345023,0.00026027,2]
[355050591,1740881460432,-435.64654977,0.00026027,2]
[355050592,1740881460441,-337.10954124,0.00026027,2]
[355051308,1740882309333,184.45,0.00015,2]
[355051312,1740882422100,1507.28681303,0.0001688,30]
[355051374,1740882631576,-300.09825122,0.00014908,2]
[355051376,1740882631585,-272.69,0.0001499,2]
[355051378,1740882631595,-7124.98443772,0.00014999,2]
[355051380,1740882631607,-8355.10178539,0.00014999,2]
[355051382,1740882631616,-500.0,0.00014999,2]
[355051383,1740882631626,-439.18835356,0.00014999,2]
[355051384,1740882631635,-27640.11443474,0.00015,2]
[355051385,1740882631647,-10732.23658103,0.00015,2]
[355051386,1740882631663,-298.0,0.00015,2]
[355051387,1740882631690,-3400.0,0.00015,2]
[355051388,1740882631746,-327.01735124,0.00015,2]
[355051389,1740882631803,-124475.53126122,0.00015,2]
[355051390,1740882631813,-584342.63164087,0.00015,2]
[355051391,1740882631822,-3989.02019529,0.00015,2]
[355051392,1740882631831,-360.10388963,0.000197,2]
[355051393,1740882631840,-3354.96110888,0.000198,2]
[355051394,1740882631851,-200.47294358,0.000199,2]
[355051395,1740882631860,-1026.19881373,0.000199,2]
[355051396,1740882631869,-1026.19881357,0.00020348,2]
[355051397,1740882631879,-3354.96110881,0.00020756,2]
[355051398,1740882631888,-1026.19881357,0.00020797,2]
[355051399,1740882631898,-1026.19881357,0.00021245,2]
[355051400,1740882631908,-1026.19881357,0.00021693,3]
[355051401,1740882631918,-3354.96110881,0.00021711,2]
[355051402,1740882631927,-469.27,0.00021917,2]
[355051403,1740882631936,-1026.19881357,0.00022141,3]
[355051404,1740882631946,-1026.19881357,0.0002259,3]
[355051405,1740882631955,-3354.96110881,0.00022667,2]
[355051406,1740882631966,-150.0,0.00022817,7]
[355051407,1740882631975,-314.78690836,0.0002301,120]
[355051408,1740882631984,-1026.19881357,0.00023038,3]
[355051409,1740882631993,-1026.19881357,0.00023486,3]
[355051410,1740882632003,-3354.96110881,0.00023622,2]
[355051411,1740882632013,-2500.0,0.000239,2]
[355051412,1740882632022,-212.93,0.00023919,2]
[355051413,1740882632031,-1026.19881357,0.00023934,3]
[355051414,1740882632040,-1000.0,0.00023951,2]
[355051415,1740882632049,-23900.0,0.00023995,2]
[355051416,1740882632059,-30729.82563271,0.00024,2]
[355051417,1740882632068,-450.0,0.00024167,2]
[355051418,1740882632077,-469.27,0.00024181,2]
[355051419,1740882632087,-1026.19881357,0.00024383,3]
[355051420,1740882632096,-457.8,0.00024487,2]
[355051421,1740882632105,-250.0,0.00024487,2]
[355051422,1740882632114,-171.030206,0.00024498,2]
[355051423,1740882632124,-1890.7057,0.00024557,2]
[355051424,1740882632136,-940.9848,0.00024557,2]
[355051425,1740882632147,-1014.7027,0.00024557,2]
[355051426,1740882632158,-1598.9829,0.00024557,2]
[355051427,1740882632168,-158.4958,0.00024557,2]
[355051428,1740882632179,-893.51843403,0.00024557,2]
[355051429,1740882632190,-3354.96110881,0.00024578,2]
[355051430,1740882632200,-905.177,0.00024584,7]
[355051431,1740882632213,-944.1004,0.00024584,2]
[355051432,1740882632223,-500.0,0.00024657,2]
[355051433,1740882632232,-940.74,0.00024657,2]
[355051434,1740882632242,-500.0,0.00024657,2]
[355051435,1740882632252,-500.0,0.00024657,2]
[355051436,1740882632262,-500.0,0.00024657,2]
[355051437,1740882632272,-500.0,0.00024657,2]
[355051438,1740882632283,-500.0,0.00024657,2]
[355051439,1740882632293,-500.0,0.00024657,2]
[355051440,1740882632303,-500.0,0.00024657,2]
[355051441,1740882632312,-507.15229325,0.00024657,2]
[355051442,1740882632322,-500.0,0.00024657,2]
[355051443,1740882632331,-500.0,0.00024657,2]
[355051444,1740882632341,-500.0,0.00024657,2]
[355051445,1740882632351,-646.01,0.00024657,2]
[355051446,1740882632360,-500.0,0.00024657,2]
[355051447,1740882632370,-500.0,0.00024657,2]
[355051448,1740882632379,-500.0,0.00024657,2]
[355051449,1740882632389,-500.0,0.00024657,2]
[355051450,1740882632398,-500.0,0.00024657,2]
[355051451,1740882632407,-500.0,0.00024657,2]
[355051452,1740882632417,-500.0,0.00024657,2]
[355051453,1740882632426,-500.0,0.00024657,2]
[355051454,1740882632435,-500.0,0.00024657,2]
[355051455,1740882632445,-500.0,0.00024657,2]
[355051456,1740882632455,-1379.21,0.00024657,2]
[355051457,1740882632464,-500.0,0.00024657,2]
[355051458,1740882632473,-500.0,0.00024657,2]
[355051459,1740882632483,-500.0,0.00024657,2]
[355051460,1740882632493,-500.0,0.00024657,2]
[355051461,1740882632503,-588.2,0.00024657,2]
[355051462,1740882632514,-500.0,0.00024657,2]
[355051463,1740882632523,-500.0,0.00024657,2]
[355051464,1740882632534,-500.0,0.00024657,2]
[355051465,1740882632544,-559.77,0.00024657,2]
[355051466,1740882632554,-500.0,0.00024657,2]
[355051467,1740882632564,-500.0,0.00024657,2]
[355051468,1740882632575,-723.04,0.00024657,2]
[355051469,1740882632586,-500.0,0.00024657,2]
[355051470,1740882632596,-801.65,0.00024657,2]
[355051471,1740882632606,-500.0,0.00024657,2]
[355051472,1740882632616,-500.0,0.00024657,2]
[355051473,1740882632626,-500.0,0.00024657,2]
[355051474,1740882632635,-500.0,0.00024657,2]
[355051475,1740882632645,-500.0,0.00024657,2]
[355051476,1740882632661,-500.0,0.00024657,2]
[355051477,1740882632671,-500.0,0.00024657,2]
[355051478,1740882632680,-500.0,0.00024657,2]
[355051479,1740882632689,-500.0,0.00024657,2]
[355051480,1740882632699,-1831.35,0.00024657,2]
[355051481,1740882632708,-500.0,0.00024657,2]
[355051482,1740882632717,-251.35521739,0.00024657,2]
[355051483,1740882632728,-500.0,0.00024657,2]
[355051484,1740882632738,-500.0,0.00024657,2]
[355051485,1740882632747,-500.0,0.00024657,2]
[355051486,1740882632757,-500.0,0.00024657,2]
[355051487,1740882632767,-500.0,0.00024657,2]
[355051488,1740882632776,-620.95384303,0.00024657,2]
[355051489,1740882632787,-500.0,0.00024657,2]
[355051490,1740882632796,-500.0,0.00024657,2]
[355051491,1740882632805,-500.0,0.00024657,2]
[355051492,1740882632815,-510.23,0.00024657,2]
[355051493,1740882632825,-500.0,0.00024657,2]
[355051494,1740882632835,-500.0,0.00024657,2]
[355051495,1740882632845,-500.0,0.00024657,2]
[355051496,1740882632855,-670.11,0.00024657,2]
[355051497,1740882632864,-500.0,0.00024657,2]
[355051498,1740882632873,-1999.03,0.00024657,2]
[355051499,1740882632882,-519.72,0.00024657,2]
[355051500,1740882632892,-500.0,0.00024657,2]
[355051501,1740882632901,-500.0,0.00024657,2]
[355051502,1740882632911,-1141.9,0.00024657,2]
[355051503,1740882632920,-500.0,0.00024657,2]
[355051504,1740882632930,-500.0,0.00024657,2]
[355051505,1740882632939,-500.0,0.00024657,2]
[355051506,1740882632949,-500.0,0.00024657,2]
[355051507,1740882632959,-500.0,0.00024657,2]
[355051508,1740882632970,-500.0,0.00024657,2]
[355051509,1740882632979,-504.65,0.00024657,2]
[355051510,1740882632988,-1918.54,0.00024657,2]
[355051511,1740882632998,-500.0,0.00024657,2]
[355051512,1740882633007,-500.0,0.00024657,2]
[355051513,1740882633016,-604.59,0.00024657,2]
[355051514,1740882633026,-607.82,0.00024657,2]
[355051515,1740882633036,-723.1,0.00024657,2]
[355051516,1740882633047,-1149.52760112,0.00024657,2]
[355051517,1740882633075,-1372.49239888,0.00024657,2]
[355051518,1740882633086,-2067.95,0.00024657,2]
[355051519,1740882633097,-1478.08935488,0.00024657,2]
[355051520,1740882637628,-286.68101648,0.00024657,2]
[355051521,1740882637740,-702.95962864,0.00024657,2]
[355051522,1740882637750,-500.0,0.00024657,2]
[355051523,1740882637760,-864.89,0.00024657,2]
[355051524,1740882637769,-2482.23,0.00024657,2]
[355051525,1740882637778,-1337.15,0.00024657,2]
[355051526,1740882637788,-500.0,0.00024657,2]
[355051527,1740882637797,-500.0,0.00024657,2]
[355051528,1740882637806,-500.0,0.00024657,2]
[355051529,1740882637815,-500.0,0.00024657,2]
[355051530,1740882637825,-500.0,0.00024657,2]
[355051531,1740882637835,-1016.76,0.00024657,2]
[355051532,1740882637844,-1258.14,0.00024657,2]
[355051533,1740882637854,-500.0,0.00024657,2]
[355051534,1740882637863,-209.59076592,0.00024657,2]
[355051535,1740882637875,-805.1683276,0.00024657,2]
[355051536,1740882637899,-569.67090648,0.00024657,2]
[355051538,1740882637909,-500.0,0.00024657,2]
[355051540,1740882637918,-500.0,0.00024657,2]
[355051542,1740882637927,-478.51869352,0.00024657,2]
[355051704,1740882639613,-21.48130648,0.00024657,2]
[355051706,1740882639623,-289.6146439,0.00024657,2]
[355051746,1740882640045,-210.3853561,0.00024657,2]
[355051748,1740882640054,-1439.64224096,0.00024657,2]
[355052267,1740882645538,-272.69,0.0001499,2]
[355052272,1740882645555,-895.445,0.00021296,2]
[355052276,1740882645572,-752.56775904,0.00024657,2]
[355052280,1740882645588,-500.0,0.00024657,2]
[355052285,1740882645604,-500.0,0.00024657,2]
[355052288,1740882645619,-1321.75,0.00024657,2]
[355052292,1740882645636,-1000.0,0.00024831,2]
[355052295,1740882645651,-1026.19881357,0.00024831,4]
[355052297,1740882645668,-500.0,0.00024928,2]
[355052300,1740882645681,-500.0,0.00024928,2]
[355052303,1740882645696,-949.52,0.00024928,2]
[355052305,1740882645710,-500.0,0.00024928,2]
[355052307,1740882645725,-1512.43,0.00024928,2]
[355052310,1740882645743,-1698.249298,0.00024928,2]
[355052313,1740882645758,-682.76,0.00024928,2]
[355052315,1740882645774,-500.0,0.00024928,2]
[355052317,1740882645785,-500.0,0.00024928,2]
[355052319,1740882645798,-500.0,0.00024928,2]
[355052322,1740882645815,-500.0,0.00024928,2]
[355052325,1740882645830,-571.784165,0.00024928,2]
[355052327,1740882645841,-763.87,0.00024928,2]
[355052329,1740882645852,-500.0,0.00024928,2]
[355052332,1740882645866,-500.0,0.00024928,2]
[355052334,1740882645881,-2220.27,0.00024928,2]
[355052337,1740882645895,-500.0,0.00024928,2]
[355052339,1740882645907,-1345.28,0.00024928,2]
[355052341,1740882645920,-996.64105422,0.00024928,2]
[355052345,1740882645949,-893.78,0.00024657,2]
[355052348,1740882645962,-1091.51894578,0.00024928,2]
[355052350,1740882645975,-1823.11,0.00024928,2]
[355052353,1740882645989,-256.42105422,0.00024928,2]
[355052355,1740882646005,-243.57894578,0.00024928,2]
[355052358,1740882646018,-2771.29,0.00024928,2]
[355052360,1740882646032,-1916.52,0.00024928,2]
[355052362,1740882646045,-131.25747263,0.00024928,2]
[355052365,1740882646061,-659.35252737,0.00024928,2]
[355052369,1740882646090,-540.64747263,0.00024928,2]
[355052374,1740882646113,-1101.98252737,0.00024928,2]
[355052376,1740882646132,-198.09927316,0.00024929,2]
[355052379,1740882646148,-500.0,0.00024929,2]
[355052382,1740882646166,-500.0,0.00024929,2]
[355052385,1740882646182,-500.0,0.00024929,2]
[355052387,1740882646197,-500.0,0.00024929,2]
[355052390,1740882646212,-212.35942404,0.00024929,2]
[355052392,1740882646226,-500.0,0.00024929,2]
[355052395,1740882646243,-500.0,0.00024929,2]
[355052397,1740882646257,-500.0,0.00024929,2]
[355052400,1740882646272,-500.0,0.00024929,2]
[355052402,1740882646287,-500.0,0.00024929,2]
[355052405,1740882646301,-1393.83,0.00024929,2]
[355052408,1740882646315,-1298.92,0.00024929,2]
[355052410,1740882646329,-1995.01,0.00024929,2]
[355052413,1740882646343,-500.0,0.00024929,2]
[355052415,1740882646357,-500.0,0.00024929,2]
[355052417,1740882646370,-500.0,0.00024929,2]
[355052420,1740882646384,-500.0,0.00024929,2]
[355052422,1740882646398,-500.0,0.00024929,2]
[355052425,1740882646412,-500.0,0.00024929,2]
[355052427,1740882646425,-500.0,0.00024929,2]
[355052430,1740882646439,-500.0,0.00024929,2]
[355052432,1740882646453,-500.0,0.00024929,2]
[355052434,1740882646466,-500.0,0.00024929,2]
[355052437,1740882646483,-500.0,0.00024929,2]
[355052439,1740882646496,-500.0,0.00024929,2]
[355052442,1740882646510,-500.0,0.00024929,2]
[355052444,1740882646525,-500.0,0.00024929,2]
[355052447,1740882646545,-500.0,0.00024929,2]
[355052450,1740882646562,-759.11,0.00024929,2]
[355052453,1740882646578,-500.0,0.00024929,2]
[355052455,1740882646595,-500.0,0.00024929,2]
[355052458,1740882646610,-500.0,0.00024929,2]
[355052460,1740882646625,-846.59,0.00024929,2]
[355052463,1740882646640,-500.0,0.00024929,2]
[355052465,1740882646655,-329.18819645,0.00024929,2]
[355052468,1740882646670,-500.0,0.00024929,2]
[355052470,1740882646685,-630.0,0.00024929,2]
[355052472,1740882646699,-500.0,0.00024929,2]
[355052475,1740882646714,-500.0,0.00024929,2]
[355052477,1740882646727,-500.0,0.00024929,2]
[355052480,1740882646743,-612.43,0.00024929,2]
[355052483,1740882646758,-500.0,0.00024929,2]
[355052485,1740882646769,-500.0,0.00024929,2]
[355052487,1740882646778,-645.27,0.00024929,2]
[355052489,1740882646788,-500.0,0.00024929,2]
[355052491,1740882646798,-500.0,0.00024929,2]
[355052493,1740882646808,-500.0,0.0002493,2]
[355052495,1740882646820,-500.0,0.0002493,2]
[355052497,1740882646830,-500.0,0.0002493,2]
[355052499,1740882646840,-500.0,0.0002493,2]
[355052501,1740882646850,-500.0,0.0002493,2]
[355052503,1740882646861,-413.73360742,0.0002493,2]
[355052505,1740882646871,-500.0,0.0002493,2]
[355052507,1740882646880,-500.0,0.0002493,2]
[355052509,1740882646890,-500.0,0.0002493,2]
[355052536,1740882647164,-500.0,0.0002493,2]
[355052540,1740882647190,-452.3259107,0.0002493,2]
[355052543,1740882647211,-500.0,0.0002493,2]
[355052545,1740882647221,-500.0,0.0002493,2]
[355052546,1740882647232,-500.0,0.0002493,2]
[355052548,1740882647242,-500.0,0.0002493,2]
[355052550,1740882647252,-233.71334232,0.0002493,2]
[355052552,1740882647262,-500.0,0.0002493,2]
[355052554,1740882647272,-500.0,0.0002493,2]
[355052556,1740882647282,-500.0,0.0002493,2]
[355052558,1740882647292,-446.77277938,0.0002493,2]
[355052560,1740882647302,-500.0,0.0002493,2]
[355052562,1740882647311,-500.0,0.0002493,2]
[355052564,1740882647321,-500.0,0.0002493,2]
[355052566,1740882647330,-500.0,0.0002493,2]
[355052568,1740882647351,-500.0,0.0002493,2]
[355052570,1740882647363,-500.0,0.0002493,2]
[355052572,1740882647372,-500.0,0.0002493,2]
[355052574,1740882647381,-568.6078458,0.0002493,2]
[355052576,1740882647390,-500.0,0.0002493,2]
[355052578,1740882647400,-500.0,0.0002493,2]
[355052580,1740882647409,-500.0,0.0002493,2]
[355052582,1740882647419,-500.0,0.0002493,2]
[355052584,1740882647429,-500.0,0.0002493,2]
[355052585,1740882647439,-500.0,0.0002493,2]
[355052587,1740882647449,-500.0,0.0002493,2]
[355052589,1740882647458,-1514.68,0.0002493,2]
[355052592,1740882647473,-500.0,0.0002493,2]
[355052594,1740882647483,-500.0,0.0002493,2]
[355052596,1740882647493,-1320.42,0.0002493,2]
[355052598,1740882647504,-500.0,0.0002493,2]
[355052600,1740882647513,-629.0342005,0.0002493,2]
[355052602,1740882647523,-500.0,0.0002493,2]
[355052604,1740882647534,-500.0,0.0002493,2]
[355052606,1740882647544,-500.0,0.0002493,2]
[355052608,1740882647554,-2033.15,0.0002493,2]
[355052610,1740882647564,-500.0,0.0002493,2]
[355052612,1740882647573,-1795.7,0.0002493,2]
[355052614,1740882647583,-168.01661569,0.0002493,2]
[355052615,1740882647593,-500.0,0.0002493,2]
[355052617,1740882647603,-671.04,0.0002493,2]
[355052620,1740882647614,-1347.29,0.0002493,2]
[355052621,1740882647624,-500.0,0.0002493,2]
[355052623,1740882647634,-500.0,0.0002493,2]
[355052625,1740882647649,-500.0,0.0002493,2]
[355052627,1740882647659,-500.0,0.0002493,2]
[355052629,1740882647669,-500.0,0.0002493,2]
[355052631,1740882647680,-500.0,0.0002493,2]
[355052633,1740882647689,-500.0,0.0002493,2]
[355052635,1740882647699,-500.0,0.0002493,2]
[355052637,1740882647708,-500.0,0.0002493,2]
[355052639,1740882647718,-500.0,0.0002493,2]
[355052641,1740882647728,-1105.69,0.0002493,2]
[355052643,1740882647739,-897.86,0.0002493,2]
[355052645,1740882647749,-126.12190786,0.0002493,2]
[355052648,1740882647764,-484.97809214,0.0002493,2]
[355052650,1740882647775,-298.47270573,0.0002493,2]
[355052652,1740882647786,-1250.31729427,0.0002493,2]
[355052654,1740882647796,-719.9093368,0.0002493,2]
[355052657,1740882647814,-198.5906632,0.0002493,2]
[355052659,1740882647823,-335.0042968,0.0002493,2]
[355054440,1740883831778,-422.34,0.00021902,2]
[355054442,1740883831788,-150.0,0.00023456,2]
[355054444,1740883831798,-450.0,0.00023456,2]
[355054447,1740883831808,-250.0,0.00023497,2]
[355054448,1740883831818,-2108.20975671,0.00023661,2]
[355054449,1740883831831,-11877.83371795,0.00023661,2]
[355054450,1740883831841,-152.0,0.00023661,3]
[355054451,1740883831851,-263.16290487,0.00023746,2]
[355054452,1740883831861,-47.67226249,0.00023776,2]
[355054453,1740883831873,-118.30773751,0.00023776,2]
[355054454,1740883831882,-300.0,0.00023822,2]
[355054455,1740883831891,-306.80362894,0.00023823,2]
[355054456,1740883831901,-222.09279524,0.00023823,2]
[355054457,1740883831912,-5188.85335184,0.00023823,2]
[355054458,1740883831928,-718.78087629,0.00023823,2]
[355054459,1740883831947,-15617.28,0.00023823,2]
[355054460,1740883831959,-2152.99297663,0.00023823,2]
[355054461,1740883831968,-212.93,0.00023846,2]
[355054462,1740883831978,-1000.0,0.0002389,2]
[355054463,1740883831987,-184.40425301,0.00024,2]
[355054464,1740883831997,-150.0,0.00024093,2]
[355054465,1740883832006,-450.0,0.00024093,2]
[355054466,1740883832016,-2150.89814585,0.0002416,2]
[355054467,1740883832025,-228.9,0.00024165,2]
[355054468,1740883832035,-422.34,0.00024166,2]
[355054469,1740883832044,-150.030211,0.00024498,2]
[355054470,1740883832054,-701.3753,0.00024546,2]
[355054471,1740883832063,-1425.8768,0.00024547,2]
[355054472,1740883832073,-1686.6156,0.00024556,2]
[355054473,1740883832082,-922.94933213,0.00024556,2]
[355054474,1740883832092,-991.4798,0.00024557,2]
[355054475,1740883832105,-2546.2119,0.00024557,2]
[355054476,1740883832115,-169.61660389,0.00024557,2]
[355054477,1740883832124,-724.142,0.00024598,7]
[355054478,1740883832133,-250.91566376,0.00024598,2]
[355054482,1740883832351,-152.0,0.0002463,4]
[355054484,1740883832362,-2787.72113647,0.00024646,2]
[355054491,1740883832435,-807.87923381,0.00024646,2]
[355054493,1740883832447,-1434.24613958,0.00024646,2]
[355054496,1740883832471,-128087.41060509,0.00024646,2]
[355054498,1740883832481,-1398.69,0.00024647,2]
[355054500,1740883832491,-238.83829691,0.00024655,2]
[355054502,1740883832503,-583.23752872,0.00024655,2]
[355054505,1740883832513,-583.23752872,0.00024655,2]
[355054508,1740883832523,-583.23752872,0.00024655,2]
[355054510,1740883832532,-583.23752872,0.00024655,2]
[355054513,1740883832543,-583.23752872,0.00024655,2]
[355054515,1740883832552,-583.23752872,0.00024655,2]
[355054516,1740883832561,-583.23752872,0.00024655,2]
[355054517,1740883832570,-583.23752872,0.00024655,2]
[355054519,1740883832583,-583.23752872,0.00024655,2]
[355054521,1740883832592,-583.23752872,0.00024655,2]
[355054522,1740883832606,-583.23752872,0.00024655,2]
[355054523,1740883832615,-583.23752872,0.00024655,2]
[355054524,1740883832624,-583.23752872,0.00024655,2]